bitfinex/quotes_BTCUSD_20240828
["timestamp","ask_amount","ask_price","bid_price","bid_amount"]
[1724842029451,0.53983733,59904.0,59903.0,0.0008998]
[1724842029613,0.53983733,59904.0,59903.0,0.00821769]
[1724842029793,0.53983733,59904.0,59903.0,0.0008998]
[1724842029992,0.53983733,59904.0,59903.0,0.00821769]
[1724842030180,0.53983733,59904.0,59903.0,0.0008998]
[1724842030380,0.53983733,59904.0,59903.0,0.00821769]
[1724842030608,0.53983733,59904.0,59903.0,0.0008998]
[1724842030609,0.51366,59904.0,59903.0,0.0008998]
[1724842030804,0.51366,59904.0,59903.0,0.00821769]
[1724842031055,0.51366,59904.0,59903.0,0.0008998]
[1724842031258,0.680593,59904.0,59903.0,0.00821769]
[1724842031470,1.16516,59904.0,59903.0,0.0008998]
[1724842031677,1.499027,59904.0,59903.0,0.00819275]
[1724842031880,1.16516,59904.0,59903.0,0.0008998]
[1724842032813,1.65461328,59904.0,59903.0,0.0008998]
[1724842033127,1.98848028,59904.0,59903.0,0.0008998]
[1724842033340,1.65461328,59904.0,59903.0,0.0008998]
[1724842033966,1.499027,59904.0,59903.0,0.0008998]
[1724842034390,1.486027,59904.0,59903.0,0.0008998]
[1724842034727,1.508027,59904.0,59903.0,0.0008998]
[1724842034927,1.832894,59904.0,59903.0,0.0008998]
[1724842035122,1.819894,59904.0,59903.0,0.0008998]
[1724842035554,1.838894,59904.0,59903.0,0.0008998]
[1724842036643,1.86507095,59904.0,59903.0,0.0008998]
[1724842036896,2.03362259,59904.0,59903.0,0.0008998]
[1724842039210,1.86507095,59904.0,59903.0,0.0008998]
[1724842041266,1.53120395,59904.0,59903.0,0.0008998]
[1724842041581,1.38050395,59904.0,59903.0,0.0008998]
[1724842044475,0.54583695,59904.0,59903.0,0.0008998]
[1724842045254,0.54583695,59904.0,59903.0,0.0070325]
[1724842045255,0.71276995,59904.0,59903.0,0.0070325]
[1724842045478,0.71276995,59904.0,59903.0,0.0008998]
[1724842045713,0.71276995,59904.0,59903.0,0.0070325]
[1724842045920,0.71276995,59904.0,59903.0,0.0008998]
[1724842046125,0.71276995,59904.0,59903.0,0.0070325]
[1724842046298,0.71276995,59904.0,59903.0,0.0008998]
[1724842046507,0.71276995,59904.0,59903.0,0.0070325]
[1724842046656,0.71276995,59904.0,59903.0,0.0008998]
[1724842046857,0.71276995,59904.0,59903.0,0.0070325]
[1724842047066,0.71276995,59904.0,59903.0,0.0008998]
[1724842047269,0.71276995,59904.0,59903.0,0.0070325]
[1724842047270,1.04663695,59904.0,59903.0,0.0070325]
[1724842047493,1.04663695,59904.0,59903.0,0.0008998]
[1724842052348,1.38050395,59904.0,59903.0,0.0008998]
[1724842052579,1.04663695,59904.0,59903.0,0.0008998]
[1724842053283,0.71276995,59904.0,59903.0,0.0008998]
[1724842053493,1.04663695,59904.0,59903.0,0.0008998]
[1724842053685,0.71276995,59904.0,59903.0,0.0008998]
[1724842053890,0.71276995,59904.0,59903.0,0.00700184]
[1724842054086,0.686593,59904.0,59903.0,0.0008998]
[1724842054289,1.02046,59904.0,59903.0,0.00700184]
[1724842054495,1.13512086,59904.0,59903.0,0.00700184]
[1724842054693,1.13512086,59904.0,59903.0,0.0008998]
[1724842054914,1.02046,59904.0,59903.0,0.0008998]
[1724842055711,1.04663479,59904.0,59903.0,0.0008998]
[1724842056325,0.71276779,59904.0,59903.0,0.00699935]
[1724842056531,0.71276779,59904.0,59903.0,0.0008998]
[1724842057071,0.71276779,59904.0,59903.0,0.00699956]
[1724842057275,0.71276779,59904.0,59903.0,0.0008998]
[1724842057417,0.71276779,59904.0,59903.0,0.00699956]
[1724842057622,0.71276779,59904.0,59903.0,0.0008998]
[1724842057809,0.71276779,59904.0,59903.0,0.00699956]
[1724842058004,0.71276779,59904.0,59903.0,0.0008998]
[1724842058200,0.71276779,59904.0,59903.0,0.00699956]
[1724842058426,0.71276779,59904.0,59903.0,0.0008998]
[1724842058639,0.71276779,59904.0,59903.0,0.00699956]
[1724842058835,0.71276779,59904.0,59903.0,0.0008998]
[1724842059153,0.21210779,59904.0,59903.0,0.0008998]
[1724842059372,0.185933,59904.0,59903.0,0.00821951]
[1724842060658,0.5198,59904.0,59903.0,0.00821951]
[1724842060801,1.003567,59904.0,59903.0,0.00821951]
[1724842061221,1.003567,59904.0,59903.0,0.0008998]
[1724842062434,1.337434,59904.0,59903.0,0.0008998]
[1724842064081,1.838244,59904.0,59903.0,0.0008998]
[1724842067478,2.00679564,59904.0,59903.0,0.0008998]
[1724842067889,2.08136634,59904.0,59903.0,0.0008998]
[1724842068095,2.05650536,59904.0,59903.0,0.0008998]
[1724842068593,1.9128147,59904.0,59903.0,0.0008998]
[1724842068789,1.88795429,59904.0,59903.0,0.0008998]
[1724842069231,1.88795552,59904.0,59903.0,0.0008998]
[1724842069409,1.838244,59904.0,59903.0,0.0008998]
[1724842073613,2.24667865,59904.0,59903.0,0.0008998]
[1724842073818,2.34066264,59904.0,59903.0,0.0008998]
[1724842075341,2.44066264,59904.0,59903.0,0.0008998]
[1724842075769,2.47366264,59904.0,59903.0,0.0008998]
[1724842076375,2.80752964,59904.0,59903.0,0.0008998]
[1724842076745,2.82335928,59904.0,59903.0,0.0008998]
[1724842077386,2.81235928,59904.0,59903.0,0.0008998]
[1724842077560,2.80435928,59904.0,59903.0,0.0008998]
[1724842077762,2.81835928,59904.0,59903.0,0.0008998]
[1724842077958,2.83235928,59904.0,59903.0,0.0008998]
[1724842078443,2.98138082,59904.0,59903.0,0.0008998]
[1724842078823,2.83235928,59904.0,59903.0,0.0008998]
[1724842079408,2.98137371,59904.0,59903.0,0.0008998]
[1724842080662,3.10273983,59904.0,59903.0,0.0008998]
[1724842080977,2.74087283,59904.0,59903.0,0.0008998]
[1724842081240,2.76887283,59904.0,59903.0,0.0008998]
[1724842081422,2.6058584,59904.0,59903.0,0.0008998]
[1724842082356,2.6198584,59904.0,59903.0,0.0008998]
[1724842082559,2.70517859,59904.0,59903.0,0.0008998]
[1724842082928,2.22316176,59904.0,59903.0,0.0008998]
[1724842083145,1.7578204,59904.0,59903.0,0.0008998]
[1724842083272,1.7329946,59904.0,59903.0,0.0008998]
[1724842083470,1.683344,59904.0,59903.0,0.0008998]
[1724842083674,1.669344,59904.0,59903.0,0.0008998]
[1724842084091,1.683344,59904.0,59903.0,0.0008998]
[1724842084697,1.349477,59904.0,59903.0,0.0008998]
[1724842085098,1.363477,59904.0,59903.0,0.0008998]
[1724842085978,1.349477,59904.0,59903.0,0.0008998]
[1724842086226,1.352477,59904.0,59903.0,0.0008998]
[1724842087090,1.352477,59904.0,59903.0,0.0638998]
[1724842087091,0.50381,59904.0,59903.0,0.0638998]
[1724842087410,0.51781,59904.0,59903.0,0.07012318]
[1724842087657,0.684743,59904.0,59903.0,0.07012318]
[1724842087831,0.670743,59904.0,59903.0,0.07012318]
[1724842088049,0.667743,59904.0,59903.0,0.07012318]
[1724842088248,0.50681,59904.0,59903.0,0.07012318]
[1724842088449,0.50881,59904.0,59903.0,0.07012318]
[1724842088664,0.50281,59904.0,59903.0,0.07012318]
[1724842088866,0.50281,59904.0,59903.0,0.23705918]
[1724842089069,0.50781,59904.0,59903.0,0.65513218]
[1724842089270,0.50581,59904.0,59903.0,0.65513218]
[1724842089446,0.51081,59904.0,59903.0,0.65513218]
[1724842090047,0.50581,59904.0,59903.0,0.65513218]
[1724842090404,0.50081,59904.0,59903.0,0.65513218]
[1724842090806,0.50281,59904.0,59903.0,0.65513218]
[1724842091302,0.50081,59904.0,59903.0,0.65513218]
[1724842091506,0.50081,59904.0,59903.0,0.98900518]
[1724842091911,0.50081,59904.0,59903.0,1.32287818]
[1724842092221,0.50081,59904.0,59903.0,0.98900518]
[1724842092643,0.50181,59904.0,59903.0,0.98900518]
[1724842092846,0.50181,59904.0,59903.0,1.32287818]
[1724842093076,0.50081,59904.0,59903.0,1.32287818]
[1724842093278,0.50181,59904.0,59903.0,1.32287818]
[1724842093852,0.50281,59904.0,59903.0,1.32287818]
[1724842094255,0.50181,59904.0,59903.0,1.32287818]
[1724842094654,0.50281,59904.0,59903.0,1.32287818]
[1724842098564,0.52898101,59904.0,59903.0,1.32287818]
[1724842099351,0.50281,59904.0,59903.0,1.65675118]
[1724842099586,0.50281,59904.0,59903.0,1.67467392]
[1724842099793,0.50281,59904.0,59903.0,1.67967392]
[1724842100035,0.50281,59904.0,59903.0,1.80745172]
[1724842100247,0.50281,59904.0,59903.0,1.80744963]
[1724842101510,0.50281,59904.0,59903.0,1.77967236]
[1724842102901,0.50281,59904.0,59903.0,1.80267236]
[1724842103654,0.50281,59904.0,59903.0,2.13654513]
[1724842103826,0.50281,59904.0,59903.0,2.16432204]
[1724842104008,0.50281,59904.0,59903.0,2.24777166]
[1724842104208,0.50281,59904.0,59903.0,2.19777204]
[1724842104409,0.50181,59904.0,59903.0,2.19777204]
[1724842104633,0.50181,59904.0,59903.0,2.24765298]
[1724842104843,0.50281,59904.0,59903.0,2.24765298]
[1724842105057,0.50281,59904.0,59903.0,2.41611375]
[1724842105432,0.50281,59904.0,59903.0,2.36623281]
[1724842105792,0.50181,59904.0,59903.0,2.36623281]
[1724842105998,0.50181,59904.0,59903.0,2.41611375]
[1724842106238,0.50281,59904.0,59903.0,2.42511375]
[1724842106425,0.50081,59904.0,59903.0,2.41611375]
[1724842106630,0.50281,59904.0,59903.0,2.39423281]
[1724842106804,0.50281,59904.0,59903.0,2.34853495]
[1724842106982,0.50281,59904.0,59903.0,3.10616961]
[1724842107369,0.50281,59904.0,59903.0,3.16978236]
[1724842107516,0.50281,59904.0,59903.0,3.50365536]
[1724842107736,0.50281,59904.0,59903.0,3.16978236]
[1724842108094,0.50281,59904.0,59903.0,3.10616961]
[1724842108943,0.50281,59904.0,59903.0,3.44004261]
[1724842109707,0.50281,59904.0,59903.0,3.10616961]
[1724842109923,0.50281,59904.0,59903.0,2.90425884]
[1724842110337,0.50281,59904.0,59903.0,2.88125884]
[1724842111019,0.50281,59904.0,59903.0,2.94816984]
[1724842111700,0.50281,59904.0,59903.0,2.97116984]
[1724842112885,0.50281,59904.0,59903.0,1.87966218]
[1724842116158,0.50281,59904.0,59903.0,2.41544595]
[1724842116618,0.50281,59904.0,59903.0,2.76499803]
[1724842116619,0.50281,59904.0,59903.0,2.4562095]
[1724842117106,0.50281,59904.0,59903.0,2.47627656]
[1724842117341,0.50281,59904.0,59903.0,2.47627422]
[1724842117585,0.50281,59904.0,59903.0,1.91311218]
[1724842117819,0.50281,59904.0,59903.0,1.92878963]
[1724842119104,0.50281,59904.0,59903.0,3.02029729]
[1724842120417,0.50281,59904.0,59903.0,3.35417029]
[1724842120653,0.50281,59904.0,59903.0,3.02029729]
[1724842120900,0.50281,59904.0,59903.0,3.00461984]
[1724842121130,0.50281,59904.0,59903.0,3.35417133]
[1724842121362,0.50281,59904.0,59903.0,3.37925692]
[1724842121858,0.50281,59904.0,59903.0,3.54771769]
[1724842122085,0.50281,59904.0,59903.0,3.56778518]
[1724842123021,0.49781,59904.0,59903.0,3.56778518]
[1724842124193,0.48119134,59904.0,59903.0,3.56778518]
[1724842124442,0.002,59904.0,59903.0,3.54771495]
[1724842124691,0.000819,59920.0,59919.0,1.16824]
[1724842124937,0.000819,59920.0,59919.0,1.14824]
[1724842125167,0.000819,59920.0,59919.0,1.15524684]
[1724842125396,0.17578485,59920.0,59919.0,1.15524684]
[1724842126325,0.17678485,59920.0,59919.0,1.16424684]
[1724842126520,0.17778485,59920.0,59919.0,1.17424684]
[1724842129421,0.151619,59920.0,59919.0,1.17424684]
[1724842132960,0.151619,59920.0,59919.0,1.17514774]
[1724842133652,0.002819,59920.0,59919.0,1.17514774]
[1724842134108,0.02898508,59920.0,59919.0,1.17514774]
[1724842139507,0.002819,59920.0,59919.0,1.17514774]
[1724842141114,0.088119,59920.0,59919.0,1.17514774]
[1724842141310,0.002819,59920.0,59919.0,1.17514774]
[1724842142720,0.068419,59920.0,59919.0,1.17514774]
[1724842145300,0.09458504,59920.0,59919.0,1.17514774]
[1724842145928,0.09458504,59920.0,59919.0,1.32044774]
[1724842145929,0.02898504,59920.0,59919.0,1.32044774]
[1724842146130,0.02898504,59920.0,59919.0,1.65423074]
[1724842147093,0.02898504,59920.0,59919.0,1.58963074]
[1724842147411,0.02898504,59920.0,59919.0,1.5590236]
[1724842147998,0.02898504,59920.0,59919.0,1.87930057]
[1724842148206,0.02898504,59920.0,59919.0,1.89497656]
[1724842148449,0.02898504,59920.0,59919.0,1.99516234]
[1724842148879,0.02898504,59920.0,59919.0,2.00770313]
[1724842149495,0.002819,59920.0,59919.0,2.00770313]
[1724842150117,0.002819,59920.0,59919.0,2.02024396]
[1724842150647,0.154119,59920.0,59919.0,2.00456792]
[1724842150843,0.154119,59920.0,59919.0,2.02024347]
[1724842151472,0.154119,59920.0,59919.0,1.53401214]
[1724842151676,0.154119,59920.0,59919.0,0.9039941]
[1724842151871,0.154119,59920.0,59919.0,0.18633953]
[1724842152097,0.154119,59920.0,59919.0,0.20633953]
[1724842152305,0.154119,59920.0,59919.0,0.54012253]
[1724842152709,0.17928591,59920.0,59919.0,0.53012253]
[1724842153084,0.17828591,59920.0,59919.0,0.52612253]
[1724842154094,0.17828591,59920.0,59919.0,0.52301999]
[1724842154603,0.17928591,59920.0,59919.0,0.53101999]
[1724842156662,0.17928591,59920.0,59919.0,0.53192089]
[1724842158480,0.17928591,59920.0,59919.0,0.53022089]
[1724842159158,0.17928591,59920.0,59919.0,0.52147236]
[1724842159615,0.153119,59920.0,59919.0,0.85525536]
[1724842160061,0.153119,59920.0,59919.0,0.52147236]
[1724842163932,0.146119,59920.0,59919.0,0.52147236]
[1724842164335,0.146119,59920.0,59919.0,0.85525536]
[1724842165747,0.17228574,59920.0,59919.0,0.85525536]
[1724842165951,0.17228574,59920.0,59919.0,1.30476511]
[1724842167200,0.02716674,59920.0,59919.0,1.30476511]
[1724842167605,0.02716674,59920.0,59919.0,1.3720704]
[1724842168606,0.02716674,59920.0,59919.0,1.3670704]
[1724842168867,0.02716674,59920.0,59919.0,1.3072704]
[1724842169008,0.02798574,59920.0,59919.0,1.3072704]
[1724842169221,0.02698574,59920.0,59919.0,1.2952704]
[1724842169426,0.001819,59920.0,59919.0,1.32517423]
[1724842169665,0.002819,59920.0,59919.0,1.33817423]
[1724842169929,0.001819,59920.0,59919.0,1.32417423]
[1724842170105,0.001819,59920.0,59919.0,1.32517423]
[1724842170507,0.070519,59920.0,59919.0,1.33817423]
[1724842170928,0.001819,59920.0,59919.0,1.32417423]
[1724842171257,0.001819,59920.0,59919.0,1.33717423]
[1724842171741,0.001819,59920.0,59919.0,1.41677423]
[1724842171941,0.000819,59920.0,59919.0,1.40377423]
[1724842172164,0.001819,59920.0,59919.0,1.41577423]
[1724842172364,0.001819,59920.0,59919.0,1.33617423]
[1724842172607,0.001819,59920.0,59919.0,1.32317423]
[1724842172747,0.02798459,59920.0,59919.0,1.32517423]
[1724842172943,0.02898459,59920.0,59919.0,1.33717423]
[1724842175408,0.02898459,59920.0,59919.0,1.43717423]
[1724842176235,0.02898459,59920.0,59919.0,1.77595723]
[1724842176413,0.02898459,59920.0,59919.0,1.92905723]
[1724842176818,0.02898459,59920.0,59919.0,2.00419724]
[1724842177034,0.02898459,59920.0,59919.0,2.37454768]
[1724842177216,0.02898459,59920.0,59919.0,2.37452398]
[1724842177421,0.02898459,59920.0,59919.0,2.29940767]
[1724842177856,0.02898459,59920.0,59919.0,2.39959436]
[1724842178059,0.02898459,59920.0,59919.0,2.4152703]
[1724842178263,0.02898459,59920.0,59919.0,2.39959436]
[1724842178484,0.02898459,59920.0,59919.0,2.31508336]
[1724842178642,0.02898459,59920.0,59919.0,2.37451273]
[1724842179048,0.02898459,59920.0,59919.0,2.29940767]
[1724842179656,0.02898459,59920.0,59919.0,2.37450796]
[1724842179830,0.02898459,59920.0,59919.0,2.29940767]
[1724842180029,0.02898459,59920.0,59919.0,2.37450794]
[1724842180234,0.02898459,59920.0,59919.0,1.92905723]
[1724842180706,0.02898459,59920.0,59919.0,1.82102478]
[1724842181324,0.02898459,59920.0,59919.0,1.48724178]
[1724842181532,0.002819,59920.0,59919.0,1.37151503]
[1724842181740,0.002819,59920.0,59919.0,1.32144748]
[1724842182373,0.002819,59920.0,59919.0,1.43717423]
[1724842183332,0.002819,59920.0,59919.0,1.48724178]
[1724842183538,0.002819,59920.0,59919.0,1.48723837]
[1724842183744,0.002819,59920.0,59919.0,1.48723869]
[1724842184312,0.002819,59920.0,59919.0,1.43717423]
[1724842184919,0.11058299,59920.0,59919.0,1.43717423]
[1724842187495,0.02898299,59920.0,59919.0,1.43717423]
[1724842187735,0.02898299,59920.0,59919.0,1.44217423]
[1724842187943,0.02898299,59920.0,59919.0,1.50667423]
[1724842189292,0.02898299,59920.0,59919.0,1.44217423]
[1724842189505,0.002819,59920.0,59919.0,1.43717423]
[1724842189708,0.149919,59920.0,59919.0,0.98766448]
[1724842189888,0.149919,59920.0,59919.0,0.53797765]
[1724842190476,0.149919,59920.0,59919.0,0.20419465]
[1724842190698,0.76631275,59920.0,59919.0,0.03730365]
[1724842191402,0.84202592,59920.0,59919.0,0.0149009]
[1724842191603,1.09909075,59920.0,59919.0,0.0149009]
[1724842191812,0.76531275,59920.0,59919.0,0.0189009]
[1724842192039,0.648586,59920.0,59919.0,0.0049009]
[1724842192261,0.649586,59920.0,59919.0,0.0079009]
[1724842192467,0.983364,59920.0,59919.0,0.0079009]
[1724842192725,0.649586,59920.0,59919.0,0.0119009]
[1724842193290,0.67575351,59920.0,59919.0,0.0119009]
[1724842197191,1.00953151,59920.0,59919.0,0.0119009]
[1724842198596,1.32684269,59920.0,59919.0,0.0119009]
[1724842198783,0.1517,59904.0,59903.0,0.0008998]
[1724842199594,0.1517,59904.0,59903.0,0.0094008]
[1724842199791,0.1517,59904.0,59903.0,0.0008998]
[1724842200339,0.1517,59904.0,59903.0,0.0096665]
[1724842200541,0.333814,59914.0,59903.0,0.0096665]
[1724842200542,0.0691,59912.0,59903.0,0.3435395]
[1724842200751,0.0837,59917.0,59916.0,0.5007]
[1724842200930,0.09527232,59918.0,59917.0,0.834487]
[1724842201130,0.0691,59918.0,59917.0,0.834487]
[1724842201342,0.011819,59920.0,59919.0,0.834457]
[1724842201545,0.000819,59920.0,59919.0,0.832457]
[1724842202139,0.000819,59920.0,59919.0,0.84150592]
[1724842202651,0.001819,59920.0,59919.0,1.17528892]
[1724842202893,0.000819,59920.0,59919.0,0.84150592]
[1724842203092,0.001819,59920.0,59919.0,0.84650592]
[1724842203293,0.087119,59920.0,59919.0,0.84650592]
[1724842203884,0.002819,59920.0,59919.0,1.33558892]
[1724842204104,0.002819,59920.0,59919.0,1.34058892]
[1724842204317,0.001819,59920.0,59919.0,1.37879496]
[1724842204493,0.02698223,59920.0,59919.0,1.85758515]
[1724842204846,0.02798223,59920.0,59919.0,1.85758515]
[1724842205278,0.02698223,59920.0,59919.0,1.85758515]
[1724842205478,0.02798223,59920.0,59919.0,1.85758515]
[1724842205649,0.02898223,59920.0,59919.0,1.86458515]
[1724842205853,0.02798223,59920.0,59919.0,1.85758515]
[1724842206077,0.02698223,59920.0,59919.0,1.80757796]
[1724842206278,0.02898223,59920.0,59919.0,1.45279496]
[1724842206432,0.02798223,59920.0,59919.0,1.37609496]
[1724842206859,0.02898223,59920.0,59919.0,1.38309496]
[1724842207287,0.02798223,59920.0,59919.0,1.37609496]
[1724842207489,0.02898223,59920.0,59919.0,1.38309496]
[1724842207693,0.02798223,59920.0,59919.0,1.38309496]
[1724842208073,0.02898223,59920.0,59919.0,1.38809496]
[1724842208273,0.02898223,59920.0,59919.0,1.72187796]
[1724842208499,0.02798223,59920.0,59919.0,1.74487796]
[1724842208705,0.02698223,59920.0,59919.0,1.81286676]
[1724842209024,0.02898223,59920.0,59919.0,2.18379315]
[1724842209516,0.000819,59920.0,59919.0,2.17679315]
[1724842209734,0.001819,59920.0,59919.0,2.18379315]
[1724842210171,0.002819,59920.0,59919.0,2.18379315]
[1724842210380,0.002819,59920.0,59919.0,2.25875424]
[1724842210594,0.001819,59920.0,59919.0,1.90197124]
[1724842210821,0.002819,59920.0,59919.0,1.30249496]
[1724842211017,0.001819,59920.0,59919.0,1.29049496]
[1724842211488,0.002819,59920.0,59919.0,1.30149496]
[1724842211899,0.001819,59920.0,59919.0,1.29049496]
[1724842212075,0.000819,59920.0,59919.0,1.29049496]
[1724842212312,0.001819,59920.0,59919.0,1.30149496]
[1724842212564,0.002819,59920.0,59919.0,1.31549496]
[1724842212775,0.001819,59920.0,59919.0,1.29049496]
[1724842212962,0.154019,59920.0,59919.0,1.19049496]
[1724842213201,0.154019,59920.0,59919.0,0.85671196]
[1724842213612,0.156019,59920.0,59919.0,0.88171196]
[1724842215044,0.087519,59920.0,59919.0,1.21549496]
[1724842217327,0.087519,59920.0,59919.0,1.20028892]
[1724842217719,0.087519,59920.0,59919.0,0.86650592]
[1724842218405,0.087519,59920.0,59919.0,0.53272292]
[1724842218804,0.084519,59920.0,59919.0,0.50772292]
[1724842219005,0.084519,59920.0,59919.0,0.84150592]
[1724842219202,0.086519,59920.0,59919.0,0.85250592]
[1724842222872,0.11268431,59920.0,59919.0,0.85250592]
[1724842224026,0.18158431,59920.0,59919.0,0.85250592]
[1724842224410,0.18158431,59920.0,59919.0,0.02004892]
[1724842224411,1.03426964,59920.0,59919.0,0.02004892]
[1724842224621,0.989864,59920.0,59919.0,0.02004892]
[1724842224833,0.989864,59920.0,59919.0,0.011]
[1724842225308,1.322642,59920.0,59919.0,0.007]
[1724842225547,1.322642,59920.0,59907.0,0.166925]
[1724842225548,0.0692,59910.0,59909.0,0.166918]
[1724842225753,0.149,59910.0,59909.0,0.166918]
[1724842225959,0.149,59910.0,59909.0,0.51133801]
[1724842226168,0.149,59910.0,59909.0,0.84317701]
[1724842226410,0.009819,59920.0,59919.0,0.501674]
[1724842226411,0.028819,59920.0,59919.0,0.501674]
[1724842226628,0.028819,59920.0,59919.0,0.835457]
[1724842226910,0.158319,59920.0,59919.0,0.84337724]
[1724842227514,0.18448521,59920.0,59919.0,0.84337724]
[1724842227891,0.17448521,59920.0,59919.0,0.84337724]
[1724842228296,0.02698521,59920.0,59919.0,1.17806114]
[1724842228878,0.02898521,59920.0,59919.0,1.17806114]
[1724842229322,0.02998521,59920.0,59919.0,1.20098085]
[1724842229512,0.004819,59920.0,59919.0,1.18606114]
[1724842229743,0.001819,59920.0,59919.0,1.19898085]
[1724842229888,0.001819,59920.0,59919.0,1.20398085]
[1724842230266,0.001819,59920.0,59919.0,1.19898085]
[1724842230267,0.002819,59920.0,59919.0,1.19898085]
[1724842230467,0.002819,59920.0,59919.0,1.19898115]
[1724842230703,0.003819,59920.0,59919.0,1.20398085]
[1724842231135,0.002819,59920.0,59919.0,1.20098085]
[1724842231535,0.003819,59920.0,59919.0,1.20398085]
[1724842231945,0.000819,59920.0,59919.0,1.19598085]
[1724842232095,0.000819,59920.0,59919.0,1.20098085]
[1724842232298,0.002819,59920.0,59919.0,1.20398085]
[1724842232500,0.002819,59920.0,59919.0,1.51984414]
[1724842232876,0.002819,59920.0,59919.0,1.56553696]
[1724842233069,0.000819,59920.0,59919.0,1.55753696]
[1724842233337,0.000819,59920.0,59919.0,1.56253696]
[1724842233544,0.001819,59920.0,59919.0,1.56253665]
[1724842233685,0.000819,59920.0,59919.0,1.55753665]
[1724842233898,0.001819,59920.0,59919.0,1.56253665]
[1724842234121,0.001819,59920.0,59919.0,1.62883665]
[1724842234293,0.002819,59920.0,59919.0,1.63183665]
[1724842234496,0.002819,59920.0,59919.0,1.56553665]
[1724842234677,0.001819,59920.0,59919.0,1.56253665]
[1724842235164,0.001819,59920.0,59919.0,1.56553665]
[1724842235165,0.002819,59920.0,59919.0,1.56553665]
[1724842235367,0.002819,59920.0,59919.0,1.51984414]
[1724842235571,0.002819,59920.0,59919.0,1.56553608]
[1724842235796,0.02898336,59920.0,59919.0,1.51984414]
[1724842236038,0.02898336,59920.0,59919.0,1.56553593]
[1724842236700,0.02898336,59920.0,59919.0,1.57053593]
[1724842236881,0.02898336,59920.0,59919.0,1.59353593]
[1724842237337,0.02898336,59920.0,59919.0,1.74351035]
[1724842237542,0.02898336,59920.0,59919.0,2.15939335]
[1724842237783,0.02798336,59920.0,59919.0,2.15639335]
[1724842237995,0.02898336,59920.0,59919.0,2.22459335]
[1724842238690,0.02698336,59920.0,59919.0,2.17090156]
[1724842238893,0.02798336,59920.0,59919.0,2.23058753]
[1724842239094,0.02898336,59920.0,59919.0,2.23358753]
[1724842239315,0.02798336,59920.0,59919.0,2.21958753]
[1724842239537,0.02798336,59920.0,59919.0,2.23358753]
[1724842239538,0.002819,59920.0,59919.0,2.23358753]
[1724842241931,0.002819,59920.0,59919.0,2.18361311]
[1724842243161,0.02898281,59920.0,59919.0,2.18361311]
[1724842244910,0.02898281,59920.0,59919.0,1.84983011]
[1724842245354,0.02898281,59920.0,59919.0,1.80414414]
[1724842245552,0.02898281,59920.0,59919.0,1.84983136]
[1724842245730,0.02898281,59920.0,59919.0,1.80414414]
[1724842245949,0.02898281,59920.0,59919.0,1.84983136]
[1724842247242,0.02898281,59920.0,59919.0,1.9667273]
[1724842247367,0.02898281,59920.0,59919.0,1.91672436]
[1724842248926,0.02898281,59920.0,59919.0,1.91672451]
[1724842249347,0.002819,59920.0,59919.0,1.96672611]
[1724842249773,0.002819,59920.0,59919.0,1.91672451]
[1724842252491,0.002819,59920.0,59919.0,1.916724]
[1724842252733,0.0289823,59920.0,59919.0,1.916724]
[1724842253665,0.0289823,59920.0,59919.0,1.96672083]
[1724842254138,0.0289823,59920.0,59919.0,1.916724]
[1724842255443,0.002819,59920.0,59919.0,1.916724]
[1724842255683,0.153519,59920.0,59919.0,0.573182]
[1724842255932,0.320408,59920.0,59919.0,0.04473786]
[1724842256221,0.320408,59920.0,59919.0,0.0208573]
[1724842256392,0.153519,59920.0,59919.0,0.0179009]
[1724842256615,0.153519,59920.0,59919.0,0.02977755]
[1724842256616,0.320408,59920.0,59919.0,0.02977755]
[1724842256898,0.986964,59920.0,59919.0,0.01577755]
[1724842257112,0.985964,59920.0,59919.0,0.0029009]
[1724842257371,1.41307363,59920.0,59919.0,0.0119009]
[1724842257608,1.320742,59920.0,59919.0,0.0119009]
[1724842258030,1.319742,59920.0,59919.0,0.0029009]
[1724842258237,1.328742,59920.0,59919.0,0.0039009]
[1724842258456,1.328742,59920.0,59919.0,0.0019009]
[1724842258724,1.329742,59920.0,59919.0,0.0019009]
[1724842258886,1.34591158,59920.0,59919.0,0.0009009]
[1724842259099,1.35491158,59920.0,59919.0,0.0019009]
[1724842259779,1.36291158,59920.0,59919.0,0.0029009]
[1724842260027,0.166929,59906.0,59903.0,0.0008998]
[1724842260272,0.1499,59904.0,59903.0,0.1698358]
[1724842260504,0.1499,59904.0,59903.0,0.5017088]
[1724842260732,0.17607203,59904.0,59903.0,0.5017088]
[1724842260961,0.17607203,59904.0,59903.0,0.1678358]
[1724842261190,0.17607203,59904.0,59903.0,0.52563268]
[1724842261439,0.17607203,59904.0,59903.0,0.5077088]
[1724842261661,0.17607203,59904.0,59903.0,0.8355818]
[1724842261900,0.02617203,59904.0,59903.0,1.18737857]
[1724842262124,0.001,59904.0,59903.0,1.19537857]
[1724842262345,0.002,59904.0,59903.0,1.20637857]
[1724842263006,0.002,59904.0,59903.0,1.77682944]
[1724842263263,0.002,59904.0,59903.0,1.30637857]
[1724842263985,0.002,59904.0,59903.0,1.31365328]
[1724842263986,0.001,59904.0,59903.0,1.31365328]
[1724842264460,0.002,59904.0,59903.0,1.32465328]
[1724842264927,0.001,59904.0,59903.0,1.31365328]
[1724842265201,0.0808,59905.0,59904.0,1.168534]
[1724842265426,0.0808,59905.0,59904.0,1.28645683]
[1724842265654,0.10696997,59905.0,59904.0,1.268534]
[1724842267667,0.10696997,59905.0,59904.0,1.277534]
[1724842268102,0.10696997,59905.0,59904.0,1.268534]
[1724842268344,0.02716997,59905.0,59904.0,1.291534]
[1724842268592,0.02716997,59905.0,59904.0,1.279534]
[1724842268808,0.02616997,59905.0,59904.0,1.28645638]
[1724842269049,0.02716997,59905.0,59904.0,1.38245638]
[1724842269290,0.02716997,59905.0,59904.0,1.29445638]
[1724842269543,0.001,59905.0,59904.0,1.30845638]
[1724842269777,0.0811,59905.0,59904.0,0.97258938]
[1724842270000,0.0811,59905.0,59904.0,0.02]
[1724842270001,0.1495,59905.0,59904.0,0.02]
[1724842270229,0.1485,59905.0,59904.0,0.178933]
[1724842270698,0.1495,59905.0,59904.0,0.189933]
[1724842270934,0.1495,59905.0,59904.0,0.177933]
[1724842271370,0.1495,59905.0,59904.0,0.191933]
[1724842272355,0.1495,59905.0,59904.0,0.5118]
[1724842272867,0.1495,59905.0,59904.0,0.52400519]
[1724842273084,0.1495,59905.0,59904.0,0.53700519]
[1724842273742,0.17567207,59905.0,59904.0,0.53700519]
[1724842274718,0.34260207,59905.0,59904.0,0.03620519]
[1724842275205,1.01032407,59905.0,59904.0,0.024]
[1724842275489,1.50755125,59905.0,59904.0,0.024]